[Event "Titled Tuesday Blitz January 17 Late 2023"]
[White "Pasti, Aron"]
[Black "Torres Dominguez, David"]
[WhiteFideId "785857"]
[BlackFideId "2220857"]
[WhiteElo "2361"]
[BlackElo "1994"]
[Result "1-0"]
[Round "03"]
[TimeControl "180+2"]
[Date "2023.01.17"]
[WhiteClock "0:00:03"]
[BlackClock "0:00:02"]

1. e4 {[%clk 0:03:00]}  Nc6 {[%clk 0:02:51]} 2. Nf3 {[%clk 0:02:57]}  e5 {[%clk 0:02:51]} 3. Bb5 {[%clk 0:02:55]}  Nge7 {[%clk 0:02:50]} 4. Nc3 {[%clk 0:02:54]}  g6 {[%clk 0:02:49]} 5. d4 {[%clk 0:02:53]}  exd4 {[%clk 0:02:48]} 6. Nd5 {[%clk 0:02:52]}  Bg7 {[%clk 0:02:49]} 7. Bg5 {[%clk 0:02:49]}  h6 {[%clk 0:02:48]} 8. Bf6 {[%clk 0:02:43]}  Bxf6 {[%clk 0:02:47]} 9. Nxf6+ {[%clk 0:02:43]}  Kf8 {[%clk 0:02:46]} 10. Nxd4 {[%clk 0:02:43]}  Nf5 {[%clk 0:02:36]} 11. Nxc6 {[%clk 0:01:54]}  Qxf6 {[%clk 0:02:28]} 12. Nxa7 {[%clk 0:01:30]}  Rxa7 {[%clk 0:02:12]} 13. exf5 {[%clk 0:01:29]}  Qe5+ {[%clk 0:02:05]} 14. Qe2 {[%clk 0:01:27]}  Qxb2 {[%clk 0:01:55]} 15. O-O {[%clk 0:01:27]}  gxf5 {[%clk 0:01:43]} 16. Rae1 {[%clk 0:01:09]}  Qf6 {[%clk 0:01:33]} 17. f4 {[%clk 0:00:59]}  d6 {[%clk 0:01:29]} 18. Rf3 {[%clk 0:00:57]}  Be6 {[%clk 0:01:24]} 19. a4 {[%clk 0:00:26]}  Kg7 {[%clk 0:01:23]} 20. Rg3+ {[%clk 0:00:26]}  Kh7 {[%clk 0:01:22]} 21. Qh5 {[%clk 0:00:21]}  c6 {[%clk 0:01:15]} 22. Bd3 {[%clk 0:00:20]}  Rxa4 {[%clk 0:01:12]} 23. Rg5 {[%clk 0:00:18]}  Ra1 {[%clk 0:01:01]} 24. Rf1 {[%clk 0:00:02]}  Rxf1+ {[%clk 0:00:59]} 25. Kxf1 {[%clk 0:00:01]}  Ra8 {[%clk 0:00:41]} 26. Rg3 {[%clk 0:00:01]}  Ra4 {[%clk 0:00:36]} 27. Rf3 {[%clk 0:00:01]}  Ra5 {[%clk 0:00:25]} 28. g4 {[%clk 0:00:01]}  Kg7 {[%clk 0:00:14]} 29. g5 {[%clk 0:00:01]}  hxg5 {[%clk 0:00:10]} 30. fxg5 {[%clk 0:00:02]}  Qa1+ {[%clk 0:00:09]} 31. Kg2 {[%clk 0:00:02]}  f4 {[%clk 0:00:07]} 32. Qh6+ {[%clk 0:00:03]}  Kg8 {[%clk 0:00:06]} 33. Bh7+ {[%clk 0:00:03]}  Kh8 {[%clk 0:00:02]} 34. Be4+ {[%clk 0:00:03]}  Kg8 {[%clk 0:00:02]} 35. Rh3 {[%clk 0:00:03]} 1-0


[Site "https://www.chess.com"]

[Event "Titled Tuesday Blitz January 17 Late 2023"]
[White "Desideri, Ricardo Maruchi"]
[Black "Ladan, Nicholas"]
[WhiteFideId "2110440"]
[BlackFideId "30918855"]
[WhiteElo "1959"]
[BlackElo "2228"]
[Result "0-1"]
[Round "03"]
[TimeControl "180+2"]
[Date "2023.01.17"]
[WhiteClock "0:00:06"]
[BlackClock "0:01:07"]

1. e4 {[%clk 0:03:00]}  e5 {[%clk 0:02:48]} 2. f4 {[%clk 0:02:58]}  exf4 {[%clk 0:02:47]} 3. Bc4 {[%clk 0:02:58]}  Qh4+ {[%clk 0:02:44]} 4. Kf1 {[%clk 0:02:58]}  Qd8 {[%clk 0:02:41]} 5. d4 {[%clk 0:02:55]}  Nf6 {[%clk 0:02:41]} 6. e5 {[%clk 0:02:49]}  d5 {[%clk 0:02:40]} 7. Bd3 {[%clk 0:02:35]}  Ne4 {[%clk 0:02:36]} 8. Bxf4 {[%clk 0:02:32]}  c5 {[%clk 0:02:36]} 9. c3 {[%clk 0:02:26]}  Nc6 {[%clk 0:02:35]} 10. Bxe4 {[%clk 0:02:22]}  dxe4 {[%clk 0:02:35]} 11. d5 {[%clk 0:02:20]}  Ne7 {[%clk 0:02:28]} 12. c4 {[%clk 0:02:16]}  Ng6 {[%clk 0:02:26]} 13. Bg3 {[%clk 0:02:04]}  Be7 {[%clk 0:02:26]} 14. Nc3 {[%clk 0:01:31]}  Bh4 {[%clk 0:02:25]} 15. Qe1 {[%clk 0:01:30]}  Qg5 {[%clk 0:02:17]} 16. Nxe4 {[%clk 0:01:20]}  Qf5+ {[%clk 0:02:08]} 17. Nf3 {[%clk 0:01:20]}  Bxg3 {[%clk 0:02:04]} 18. Nxg3 {[%clk 0:01:18]}  Qf4 {[%clk 0:02:04]} 19. Qe4 {[%clk 0:01:10]}  O-O {[%clk 0:01:53]} 20. Kf2 {[%clk 0:01:00]}  Re8 {[%clk 0:01:47]} 21. Rhe1 {[%clk 0:00:53]}  Qxe4 {[%clk 0:01:43]} 22. Rxe4 {[%clk 0:00:52]}  b5 {[%clk 0:01:35]} 23. b3 {[%clk 0:00:51]}  f6 {[%clk 0:01:29]} 24. e6 {[%clk 0:00:49]}  Bb7 {[%clk 0:01:28]} 25. Rd1 {[%clk 0:00:42]}  Rad8 {[%clk 0:01:28]} 26. Nf5 {[%clk 0:00:40]}  Ne7 {[%clk 0:01:19]} 27. g4 {[%clk 0:00:33]}  Nc8 {[%clk 0:01:11]} 28. cxb5 {[%clk 0:00:14]}  g6 {[%clk 0:01:10]} 29. e7 {[%clk 0:00:12]}  Rd7 {[%clk 0:01:07]} 30. Ne3 {[%clk 0:00:08]}  Rexe7 {[%clk 0:01:06]} 31. Rxe7 {[%clk 0:00:07]}  Rxe7 {[%clk 0:01:07]} 32. d6 {[%clk 0:00:06]}  Rd7 {[%clk 0:01:07]} 0-1


[Site "https://www.chess.com"]

[Event "Titled Tuesday Blitz January 17 Late 2023"]
[White "Yurovskykh, Oleksandr"]
[Black "Gatterer, Florian"]
[WhiteFideId "14134020"]
[BlackFideId "811688"]
[WhiteElo "2328"]
[BlackElo "2170"]
[Result "1/2-1/2"]
[Round "03"]
[TimeControl "180+2"]
[Date "2023.01.17"]
[WhiteClock "0:01:25"]
[BlackClock "0:01:28"]

1. g3 {[%clk 0:03:00]}  d5 {[%clk 0:02:58]} 2. Bg2 {[%clk 0:03:01]}  c6 {[%clk 0:02:58]} 3. d3 {[%clk 0:03:02]}  e5 {[%clk 0:02:57]} 4. Nf3 {[%clk 0:03:00]}  Bd6 {[%clk 0:02:56]} 5. O-O {[%clk 0:03:00]}  Nf6 {[%clk 0:02:57]} 6. c4 {[%clk 0:02:57]}  O-O {[%clk 0:02:56]} 7. Nc3 {[%clk 0:02:57]}  d4 {[%clk 0:02:56]} 8. Nb1 {[%clk 0:02:58]}  Bg4 {[%clk 0:02:53]} 9. h3 {[%clk 0:02:57]}  Bh5 {[%clk 0:02:53]} 10. a3 {[%clk 0:02:58]}  a5 {[%clk 0:02:53]} 11. Bg5 {[%clk 0:02:59]}  Nbd7 {[%clk 0:02:50]} 12. Nbd2 {[%clk 0:02:59]}  h6 {[%clk 0:02:49]} 13. Bxf6 {[%clk 0:02:57]}  Nxf6 {[%clk 0:02:49]} 14. Qc2 {[%clk 0:02:57]}  Re8 {[%clk 0:02:46]} 15. Rfe1 {[%clk 0:02:55]}  Bg6 {[%clk 0:02:44]} 16. Nh4 {[%clk 0:02:45]}  Bh7 {[%clk 0:02:41]} 17. Ne4 {[%clk 0:02:42]}  g5 {[%clk 0:02:19]} 18. Nf3 {[%clk 0:02:21]}  Nxe4 {[%clk 0:02:14]} 19. dxe4 {[%clk 0:02:22]}  c5 {[%clk 0:02:10]} 20. b3 {[%clk 0:02:09]}  Qd7 {[%clk 0:02:03]} 21. Nd2 {[%clk 0:02:00]}  Rf8 {[%clk 0:01:52]} 22. g4 {[%clk 0:01:55]}  Bg6 {[%clk 0:01:50]} 23. Nf1 {[%clk 0:01:52]}  b6 {[%clk 0:01:49]} 24. Ng3 {[%clk 0:01:52]}  Rfe8 {[%clk 0:01:43]} 25. Nf5 {[%clk 0:01:52]}  Bxf5 {[%clk 0:01:43]} 26. exf5 {[%clk 0:01:51]}  e4 {[%clk 0:01:39]} 27. Bxe4 {[%clk 0:01:50]}  Rad8 {[%clk 0:01:33]} 28. Bd5 {[%clk 0:01:25]}  Qe7 {[%clk 0:01:28]} 1/2-1/2


[Site "https://www.chess.com"]

[Event "Titled Tuesday Blitz January 17 Late 2023"]
[White "Ozdemir, Serhan Berat"]
[Black "Ovezdurdyyeva, Jemal"]
[WhiteFideId "6374611"]
[BlackFideId "14001888"]
[WhiteElo "2223"]
[BlackElo "2078"]
[Result "1-0"]
[Round "03"]
[TimeControl "180+2"]
[Date "2023.01.17"]
[WhiteClock "0:00:06"]
[BlackClock "0:00:09"]

1. e4 {[%clk 0:03:00]}  d6 {[%clk 0:03:00]} 2. d4 {[%clk 0:02:59]}  Nf6 {[%clk 0:03:00]} 3. Nc3 {[%clk 0:02:59]}  g6 {[%clk 0:03:00]} 4. Nf3 {[%clk 0:02:58]}  Bg7 {[%clk 0:03:00]} 5. Be3 {[%clk 0:02:59]}  c6 {[%clk 0:02:58]} 6. Qd2 {[%clk 0:02:59]}  h5 {[%clk 0:02:57]} 7. Bd3 {[%clk 0:02:44]}  Nbd7 {[%clk 0:02:50]} 8. O-O {[%clk 0:02:43]}  e5 {[%clk 0:02:49]} 9. h3 {[%clk 0:02:36]}  O-O {[%clk 0:02:48]} 10. a4 {[%clk 0:02:18]}  Re8 {[%clk 0:02:42]} 11. Rfe1 {[%clk 0:02:13]}  Nf8 {[%clk 0:02:37]} 12. Bc4 {[%clk 0:02:07]}  Qc7 {[%clk 0:02:25]} 13. Bh6 {[%clk 0:02:02]}  Be6 {[%clk 0:02:24]} 14. Bxg7 {[%clk 0:01:59]}  Kxg7 {[%clk 0:02:23]} 15. Bf1 {[%clk 0:01:46]}  Rad8 {[%clk 0:02:14]} 16. d5 {[%clk 0:01:38]}  Bc8 {[%clk 0:02:10]} 17. b4 {[%clk 0:01:30]}  N6h7 {[%clk 0:01:39]} 18. a5 {[%clk 0:01:23]}  f5 {[%clk 0:01:38]} 19. exf5 {[%clk 0:01:22]}  Bxf5 {[%clk 0:01:36]} 20. a6 {[%clk 0:01:13]}  b6 {[%clk 0:01:22]} 21. dxc6 {[%clk 0:01:12]}  d5 {[%clk 0:01:12]} 22. Nxd5 {[%clk 0:01:05]}  Qxc6 {[%clk 0:01:09]} 23. c4 {[%clk 0:01:04]}  Nf6 {[%clk 0:01:07]} 24. Nxe5 {[%clk 0:01:02]}  Qd6 {[%clk 0:01:03]} 25. Qb2 {[%clk 0:00:52]}  Nxd5 {[%clk 0:00:30]} 26. cxd5 {[%clk 0:00:39]}  Kg8 {[%clk 0:00:20]} 27. Rad1 {[%clk 0:00:31]}  Qf6 {[%clk 0:00:18]} 28. Bb5 {[%clk 0:00:21]}  Re7 {[%clk 0:00:16]} 29. f4 {[%clk 0:00:17]}  Rd6 {[%clk 0:00:10]} 30. Bc6 {[%clk 0:00:11]}  Bd7 {[%clk 0:00:09]} 31. Bxd7 {[%clk 0:00:10]}  Nxd7 {[%clk 0:00:09]} 32. Qd4 {[%clk 0:00:08]}  Nf8 {[%clk 0:00:07]} 33. Qf2 {[%clk 0:00:04]}  Re8 {[%clk 0:00:05]} 34. Nc4 {[%clk 0:00:04]}  Rxe1+ {[%clk 0:00:05]} 35. Qxe1 {[%clk 0:00:05]}  Rd8 {[%clk 0:00:05]} 36. Qe5 {[%clk 0:00:04]}  Kg7 {[%clk 0:00:04]} 37. d6 {[%clk 0:00:03]}  Qxe5 {[%clk 0:00:03]} 38. fxe5 {[%clk 0:00:04]}  Kf7 {[%clk 0:00:04]} 39. Rf1+ {[%clk 0:00:03]}  Ke6 {[%clk 0:00:03]} 40. b5 {[%clk 0:00:03]}  Kd5 {[%clk 0:00:03]} 41. Ne3+ {[%clk 0:00:01]}  Kxe5 {[%clk 0:00:03]} 42. d7 {[%clk 0:00:01]}  Nxd7 {[%clk 0:00:02]} 43. Rf7 {[%clk 0:00:02]}  Ke6 {[%clk 0:00:02]} 44. Rg7 {[%clk 0:00:02]}  Kf6 {[%clk 0:00:02]} 45. Rh7 {[%clk 0:00:02]}  Re8 {[%clk 0:00:02]} 46. Rxd7 {[%clk 0:00:02]}  Rxe3 {[%clk 0:00:03]} 47. Rxa7 {[%clk 0:00:03]}  Rb3 {[%clk 0:00:03]} 48. Rb7 {[%clk 0:00:02]}  Rxb5 {[%clk 0:00:03]} 49. a7 {[%clk 0:00:02]}  Ra5 {[%clk 0:00:04]} 50. Rxb6+ {[%clk 0:00:03]}  Kf5 {[%clk 0:00:05]} 51. Rb7 {[%clk 0:00:03]}  Kf4 {[%clk 0:00:03]} 52. Kh2 {[%clk 0:00:04]}  Kg5 {[%clk 0:00:03]} 53. Rf7 {[%clk 0:00:04]}  h4 {[%clk 0:00:03]} 54. Kg1 {[%clk 0:00:04]}  Ra2 {[%clk 0:00:04]} 55. Kf1 {[%clk 0:00:03]}  Kh5 {[%clk 0:00:05]} 56. Ke1 {[%clk 0:00:03]}  Kg5 {[%clk 0:00:05]} 57. Kd1 {[%clk 0:00:04]}  Ra6 {[%clk 0:00:05]} 58. Kc2 {[%clk 0:00:04]}  Ra2+ {[%clk 0:00:05]} 59. Kb3 {[%clk 0:00:04]}  Ra6 {[%clk 0:00:06]} 60. Kc4 {[%clk 0:00:05]}  Kh5 {[%clk 0:00:05]} 61. Kb5 {[%clk 0:00:05]}  Ra2 {[%clk 0:00:06]} 62. Kb6 {[%clk 0:00:04]}  g5 {[%clk 0:00:06]} 63. Kb7 {[%clk 0:00:04]}  g4 {[%clk 0:00:07]} 64. a8=Q {[%clk 0:00:03]}  Rxa8 {[%clk 0:00:06]} 65. Kxa8 {[%clk 0:00:04]}  gxh3 {[%clk 0:00:06]} 66. gxh3 {[%clk 0:00:05]}  Kg5 {[%clk 0:00:07]} 67. Rf3 {[%clk 0:00:04]}  Kg6 {[%clk 0:00:08]} 68. Kb7 {[%clk 0:00:05]}  Kg5 {[%clk 0:00:09]} 69. Kc6 {[%clk 0:00:06]} 1-0


[Site "https://www.chess.com"]

[Event "Titled Tuesday Blitz January 17 Late 2023"]
[White "Mazurkiewicz, Michal"]
[Black "Ozates, Tuna"]
[WhiteFideId "1124943"]
[BlackFideId "6354521"]
[WhiteElo "2145"]
[BlackElo "2251"]
[Result "0-1"]
[Round "03"]
[TimeControl "180+2"]
[Date "2023.01.17"]
[WhiteClock "0:00:03"]
[BlackClock "0:00:05"]

1. e4 {[%clk 0:03:00]}  c5 {[%clk 0:02:53]} 2. Nf3 {[%clk 0:03:00]}  Nc6 {[%clk 0:02:52]} 3. d3 {[%clk 0:03:00]}  g6 {[%clk 0:02:52]} 4. g3 {[%clk 0:03:00]}  Bg7 {[%clk 0:02:53]} 5. Bg2 {[%clk 0:03:01]}  d6 {[%clk 0:02:53]} 6. O-O {[%clk 0:03:01]}  e5 {[%clk 0:02:54]} 7. Nc3 {[%clk 0:03:01]}  Nge7 {[%clk 0:02:54]} 8. Nd2 {[%clk 0:03:01]}  O-O {[%clk 0:02:55]} 9. Nc4 {[%clk 0:03:02]}  h6 {[%clk 0:02:53]} 10. a4 {[%clk 0:03:01]}  Be6 {[%clk 0:02:37]} 11. Nd5 {[%clk 0:03:01]}  Rb8 {[%clk 0:02:33]} 12. c3 {[%clk 0:02:58]}  f5 {[%clk 0:02:26]} 13. f4 {[%clk 0:02:58]}  Qd7 {[%clk 0:02:15]} 14. a5 {[%clk 0:02:52]}  fxe4 {[%clk 0:02:00]} 15. dxe4 {[%clk 0:02:53]}  Bg4 {[%clk 0:01:50]} 16. Qa4 {[%clk 0:02:48]}  Qe6 {[%clk 0:01:18]} 17. Nce3 {[%clk 0:02:07]}  Be2 {[%clk 0:01:01]} 18. Rf2 {[%clk 0:02:05]}  Ba6 {[%clk 0:01:00]} 19. f5 {[%clk 0:01:53]}  gxf5 {[%clk 0:00:53]} 20. exf5 {[%clk 0:01:54]}  Nxf5 {[%clk 0:00:42]} 21. Qg4 {[%clk 0:00:32]}  h5 {[%clk 0:00:26]} 22. Qh3 {[%clk 0:00:22]}  Bd3 {[%clk 0:00:22]} 23. Nf4 {[%clk 0:00:20]}  exf4 {[%clk 0:00:20]} 24. Bd5 {[%clk 0:00:20]}  Qxd5 {[%clk 0:00:20]} 25. Nxd5 {[%clk 0:00:20]}  fxg3 {[%clk 0:00:14]} 26. hxg3 {[%clk 0:00:21]}  Rbe8 {[%clk 0:00:14]} 27. Bf4 {[%clk 0:00:20]}  Ne5 {[%clk 0:00:09]} 28. Bxe5 {[%clk 0:00:20]}  Rxe5 {[%clk 0:00:10]} 29. Nf4 {[%clk 0:00:20]}  Re3 {[%clk 0:00:09]} 30. Nxd3 {[%clk 0:00:17]}  Rxg3+ {[%clk 0:00:09]} 31. Qxg3 {[%clk 0:00:17]}  Nxg3 {[%clk 0:00:10]} 32. Rxf8+ {[%clk 0:00:17]}  Bxf8 {[%clk 0:00:11]} 33. Kf2 {[%clk 0:00:16]}  Nf5 {[%clk 0:00:07]} 34. Kf3 {[%clk 0:00:16]}  Bh6 {[%clk 0:00:06]} 35. Ke4 {[%clk 0:00:16]}  Ne7 {[%clk 0:00:06]} 36. Rh1 {[%clk 0:00:14]}  d5+ {[%clk 0:00:05]} 37. Ke5 {[%clk 0:00:14]}  Kf7 {[%clk 0:00:06]} 38. Kd6 {[%clk 0:00:14]}  c4 {[%clk 0:00:04]} 39. Ne5+ {[%clk 0:00:14]}  Kf6 {[%clk 0:00:05]} 40. Rf1+ {[%clk 0:00:13]}  Nf5+ {[%clk 0:00:04]} 41. Kxd5 {[%clk 0:00:12]}  Kg5 {[%clk 0:00:03]} 42. Nf7+ {[%clk 0:00:12]}  Kg6 {[%clk 0:00:03]} 43. Nxh6 {[%clk 0:00:09]}  Ne3+ {[%clk 0:00:03]} 44. Ke4 {[%clk 0:00:04]}  Nxf1 {[%clk 0:00:04]} 45. Nf5 {[%clk 0:00:04]}  Kg5 {[%clk 0:00:04]} 46. Nd6 {[%clk 0:00:04]}  Kg4 {[%clk 0:00:03]} 47. Nxc4 {[%clk 0:00:02]}  h4 {[%clk 0:00:03]} 48. Ne5+ {[%clk 0:00:02]}  Kg3 {[%clk 0:00:03]} 49. Nf3 {[%clk 0:00:02]}  h3 {[%clk 0:00:03]} 50. c4 {[%clk 0:00:02]}  Nh2 {[%clk 0:00:02]} 51. Nxh2 {[%clk 0:00:02]}  Kxh2 {[%clk 0:00:03]} 52. c5 {[%clk 0:00:01]}  Kg3 {[%clk 0:00:03]} 53. a6 {[%clk 0:00:01]}  bxa6 {[%clk 0:00:03]} 54. c6 {[%clk 0:00:01]}  h2 {[%clk 0:00:04]} 55. c7 {[%clk 0:00:02]}  h1=Q+ {[%clk 0:00:05]} 56. Ke5 {[%clk 0:00:03]}  Qc6 {[%clk 0:00:05]} 0-1


[Site "https://www.chess.com"]

[Event "Titled Tuesday Blitz January 17 Late 2023"]
[White "Danielyan, Vahe"]
[Black "Jorajuria Mendoza, Algol"]
[WhiteFideId "13304828"]
[BlackFideId "5128897"]
[WhiteElo "2346"]
[BlackElo "2069"]
[Result "0-1"]
[Round "03"]
[TimeControl "180+2"]
[Date "2023.01.17"]
[WhiteClock "0:00:03"]
[BlackClock "0:00:15"]

1. e4 {[%clk 0:02:52]}  g6 {[%clk 0:02:58]} 2. d4 {[%clk 0:02:51]}  Bg7 {[%clk 0:02:59]} 3. Nc3 {[%clk 0:02:48]}  d6 {[%clk 0:02:57]} 4. Be3 {[%clk 0:02:41]}  Nd7 {[%clk 0:02:56]} 5. Qd2 {[%clk 0:02:38]}  a6 {[%clk 0:02:55]} 6. h4 {[%clk 0:02:36]}  h6 {[%clk 0:02:52]} 7. h5 {[%clk 0:02:34]}  g5 {[%clk 0:02:52]} 8. Nge2 {[%clk 0:02:33]}  b5 {[%clk 0:02:52]} 9. Ng3 {[%clk 0:02:34]}  e6 {[%clk 0:02:47]} 10. a4 {[%clk 0:02:31]}  b4 {[%clk 0:02:43]} 11. Na2 {[%clk 0:02:31]}  a5 {[%clk 0:02:41]} 12. Be2 {[%clk 0:02:31]}  Ngf6 {[%clk 0:02:33]} 13. Nc1 {[%clk 0:02:27]}  Bb7 {[%clk 0:02:32]} 14. f3 {[%clk 0:02:28]}  c5 {[%clk 0:02:17]} 15. dxc5 {[%clk 0:02:27]}  dxc5 {[%clk 0:02:17]} 16. Nb3 {[%clk 0:02:26]}  Qc7 {[%clk 0:02:16]} 17. Bf2 {[%clk 0:02:23]}  O-O {[%clk 0:02:06]} 18. O-O {[%clk 0:02:17]}  Rfd8 {[%clk 0:01:57]} 19. Rad1 {[%clk 0:02:13]}  c4 {[%clk 0:01:46]} 20. Nd4 {[%clk 0:02:11]}  Nc5 {[%clk 0:01:46]} 21. Qe3 {[%clk 0:01:58]}  Nxa4 {[%clk 0:01:42]} 22. Rfe1 {[%clk 0:01:15]}  Nxb2 {[%clk 0:01:39]} 23. Rb1 {[%clk 0:01:09]}  c3 {[%clk 0:01:38]} 24. Nb5 {[%clk 0:00:58]}  Qf4 {[%clk 0:01:34]} 25. Qb6 {[%clk 0:00:55]}  Qb8 {[%clk 0:00:40]} 26. Nf1 {[%clk 0:00:31]}  Ra6 {[%clk 0:00:34]} 27. Qe3 {[%clk 0:00:28]}  Qf4 {[%clk 0:00:33]} 28. Qc5 {[%clk 0:00:09]}  Nd7 {[%clk 0:00:31]} 29. Qe7 {[%clk 0:00:08]}  Bf6 {[%clk 0:00:32]} 30. g3 {[%clk 0:00:04]}  Qb8 {[%clk 0:00:32]} 31. Qxd8+ {[%clk 0:00:01]}  Qxd8 {[%clk 0:00:30]} 32. Ne3 {[%clk 0:00:02]}  Ne5 {[%clk 0:00:29]} 33. f4 {[%clk 0:00:02]}  gxf4 {[%clk 0:00:26]} 34. gxf4 {[%clk 0:00:02]}  Nc6 {[%clk 0:00:22]} 35. Ng4 {[%clk 0:00:03]}  Bh4 {[%clk 0:00:19]} 36. e5 {[%clk 0:00:04]}  Bxf2+ {[%clk 0:00:18]} 37. Kxf2 {[%clk 0:00:05]}  Qh4+ {[%clk 0:00:18]} 38. Kg1 {[%clk 0:00:04]}  Qg3+ {[%clk 0:00:17]} 39. Kf1 {[%clk 0:00:04]}  Nxe5 {[%clk 0:00:16]} 40. Nf6+ {[%clk 0:00:03]}  Kh8 {[%clk 0:00:15]} 0-1


[Site "https://www.chess.com"]

[Event "Titled Tuesday Blitz January 17 Late 2023"]
[White "Vargas, Mauricio"]
[Black "Mosquera, Miguel"]
[WhiteFideId "4404572"]
[BlackFideId "4401131"]
[WhiteElo "2035"]
[BlackElo "2371"]
[Result "0-1"]
[Round "03"]
[TimeControl "180+2"]
[Date "2023.01.17"]
[WhiteClock "0:00:02"]
[BlackClock "0:00:48"]

1. e4 {[%clk 0:03:00]}  c5 {[%clk 0:02:57]} 2. Nf3 {[%clk 0:02:59]}  d6 {[%clk 0:02:57]} 3. d4 {[%clk 0:02:59]}  cxd4 {[%clk 0:02:58]} 4. Nxd4 {[%clk 0:03:00]}  Nf6 {[%clk 0:02:58]} 5. Nc3 {[%clk 0:02:59]}  a6 {[%clk 0:02:58]} 6. f3 {[%clk 0:02:56]}  b5 {[%clk 0:02:47]} 7. Be3 {[%clk 0:02:55]}  e6 {[%clk 0:02:47]} 8. Qd2 {[%clk 0:02:55]}  Bb7 {[%clk 0:02:47]} 9. g4 {[%clk 0:02:40]}  Nbd7 {[%clk 0:02:42]} 10. Bg2 {[%clk 0:02:38]}  Rc8 {[%clk 0:02:28]} 11. O-O {[%clk 0:02:37]}  Ne5 {[%clk 0:02:25]} 12. b3 {[%clk 0:02:19]}  Be7 {[%clk 0:02:10]} 13. h3 {[%clk 0:02:13]}  O-O {[%clk 0:02:09]} 14. f4 {[%clk 0:02:07]}  Nc6 {[%clk 0:01:54]} 15. g5 {[%clk 0:02:02]}  Nd7 {[%clk 0:01:51]} 16. Nd1 {[%clk 0:01:43]}  d5 {[%clk 0:01:24]} 17. e5 {[%clk 0:01:24]}  Bc5 {[%clk 0:01:21]} 18. c3 {[%clk 0:01:18]}  Qb6 {[%clk 0:01:15]} 19. Nf2 {[%clk 0:01:06]}  b4 {[%clk 0:01:13]} 20. Ng4 {[%clk 0:00:52]}  bxc3 {[%clk 0:01:07]} 21. Qf2 {[%clk 0:00:19]}  Bxd4 {[%clk 0:00:59]} 22. Nf6+ {[%clk 0:00:14]}  Nxf6 {[%clk 0:00:51]} 23. Bxd4 {[%clk 0:00:02]}  Qxd4 {[%clk 0:00:50]} 24. gxf6 {[%clk 0:00:02]}  gxf6 {[%clk 0:00:48]} 0-1


[Site "https://www.chess.com"]

[Event "Titled Tuesday Blitz January 17 Late 2023"]
[White "Javakhadze, Zurab"]
[Black "Guevara Sanchez, Erick Marvin"]
[WhiteFideId "13603647"]
[BlackFideId "6700136"]
[WhiteElo "2459"]
[BlackElo "2073"]
[Result "1-0"]
[Round "03"]
[TimeControl "180+2"]
[Date "2023.01.17"]
[WhiteClock "0:01:28"]
[BlackClock "0:01:08"]

1. d4 {[%clk 0:03:00]}  d5 {[%clk 0:02:59]} 2. c4 {[%clk 0:02:58]}  e6 {[%clk 0:02:58]} 3. Nc3 {[%clk 0:02:59]}  c5 {[%clk 0:02:56]} 4. cxd5 {[%clk 0:02:56]}  exd5 {[%clk 0:02:56]} 5. Nf3 {[%clk 0:02:56]}  Nf6 {[%clk 0:02:56]} 6. Bg5 {[%clk 0:02:48]}  Be7 {[%clk 0:02:53]} 7. dxc5 {[%clk 0:02:47]}  O-O {[%clk 0:02:50]} 8. e3 {[%clk 0:02:47]}  Nc6 {[%clk 0:02:41]} 9. Be2 {[%clk 0:02:47]}  Be6 {[%clk 0:02:37]} 10. Rc1 {[%clk 0:02:41]}  Bxc5 {[%clk 0:02:33]} 11. O-O {[%clk 0:02:34]}  Bd6 {[%clk 0:02:27]} 12. Nd4 {[%clk 0:02:24]}  Rc8 {[%clk 0:02:23]} 13. Bf3 {[%clk 0:02:18]}  Ne5 {[%clk 0:02:12]} 14. Bxd5 {[%clk 0:01:49]}  Neg4 {[%clk 0:01:54]} 15. Nxe6 {[%clk 0:01:42]}  fxe6 {[%clk 0:01:45]} 16. Bxe6+ {[%clk 0:01:42]}  Kh8 {[%clk 0:01:45]} 17. Bxg4 {[%clk 0:01:42]}  Qa5 {[%clk 0:01:08]} 18. Bxf6 {[%clk 0:01:28]} 1-0


[Site "https://www.chess.com"]